[Event "Titled Tuesday Blitz April 26 Early 2022"]
[White "Murthy, Pappu"]
[Black "Torres Hernandez, Leslie Carolin"]
[WhiteFideId "2013401"]
[BlackFideId "8400504"]
[WhiteElo "1973"]
[BlackElo "1920"]
[Result "0-1"]
[Round "10"]
[TimeControl "180+1"]
[Date "2022.04.26"]
[WhiteClock "0:00:15"]
[BlackClock "0:00:10"]

1. c4 {[%clk 0:03:00]}  Nf6 {[%clk 0:02:58]} 2. Nc3 {[%clk 0:03:00]}  g6 {[%clk 0:02:56]} 3. e4 {[%clk 0:03:00]}  d6 {[%clk 0:02:55]} 4. d4 {[%clk 0:03:00]}  Bg7 {[%clk 0:02:54]} 5. Nge2 {[%clk 0:03:00]}  e5 {[%clk 0:02:54]} 6. d5 {[%clk 0:02:59]}  c6 {[%clk 0:02:51]} 7. Ng3 {[%clk 0:02:59]}  cxd5 {[%clk 0:02:50]} 8. cxd5 {[%clk 0:02:58]}  a6 {[%clk 0:02:24]} 9. Be2 {[%clk 0:02:53]}  b5 {[%clk 0:02:23]} 10. b3 {[%clk 0:02:45]}  Nbd7 {[%clk 0:02:20]} 11. h4 {[%clk 0:02:43]}  h5 {[%clk 0:02:18]} 12. Bg5 {[%clk 0:02:41]}  Qa5 {[%clk 0:02:15]} 13. Bd2 {[%clk 0:02:35]}  Qb6 {[%clk 0:01:57]} 14. Be3 {[%clk 0:02:30]}  Qb7 {[%clk 0:01:40]} 15. Rc1 {[%clk 0:02:28]}  b4 {[%clk 0:01:33]} 16. Na4 {[%clk 0:02:25]}  O-O {[%clk 0:01:18]} 17. Rc6 {[%clk 0:02:19]}  Ne8 {[%clk 0:01:15]} 18. Bxh5 {[%clk 0:02:12]}  gxh5 {[%clk 0:01:14]} 19. Nxh5 {[%clk 0:02:09]}  Kh7 {[%clk 0:01:04]} 20. Qf3 {[%clk 0:02:04]}  Ndf6 {[%clk 0:00:52]} 21. Nxg7 {[%clk 0:01:51]}  Kxg7 {[%clk 0:00:48]} 22. Nb6 {[%clk 0:01:44]}  Bd7 {[%clk 0:00:41]} 23. Nxd7 {[%clk 0:01:14]}  Qxd7 {[%clk 0:00:40]} 24. h5 {[%clk 0:01:13]}  Qg4 {[%clk 0:00:37]} 25. h6+ {[%clk 0:01:13]}  Kh7 {[%clk 0:00:36]} 26. Rh3 {[%clk 0:01:04]}  Qxf3 {[%clk 0:00:30]} 27. Rxf3 {[%clk 0:01:04]}  a5 {[%clk 0:00:24]} 28. Bg5 {[%clk 0:00:58]}  Nxe4 {[%clk 0:00:23]} 29. Be7 {[%clk 0:00:57]}  Rg8 {[%clk 0:00:23]} 30. Rxf7+ {[%clk 0:00:56]}  Kxh6 {[%clk 0:00:23]} 31. g3 {[%clk 0:00:51]}  Rg7 {[%clk 0:00:22]} 32. Bf8 {[%clk 0:00:43]}  Kg6 {[%clk 0:00:22]} 33. Rxg7+ {[%clk 0:00:38]}  Nxg7 {[%clk 0:00:22]} 34. Bxd6 {[%clk 0:00:38]}  Nxd6 {[%clk 0:00:19]} 35. Rxd6+ {[%clk 0:00:39]}  Kf5 {[%clk 0:00:19]} 36. Rd7 {[%clk 0:00:38]}  Ne8 {[%clk 0:00:19]} 37. Kd2 {[%clk 0:00:35]}  Ke4 {[%clk 0:00:19]} 38. g4 {[%clk 0:00:34]}  a4 {[%clk 0:00:18]} 39. g5 {[%clk 0:00:33]}  axb3 {[%clk 0:00:18]} 40. axb3 {[%clk 0:00:33]}  Ra2+ {[%clk 0:00:18]} 41. Ke1 {[%clk 0:00:33]}  Kf3 {[%clk 0:00:16]} 42. g6 {[%clk 0:00:32]}  Re2+ {[%clk 0:00:15]} 43. Kd1 {[%clk 0:00:30]}  Rxf2 {[%clk 0:00:16]} 44. g7 {[%clk 0:00:30]}  Rg2 {[%clk 0:00:14]} 45. Rf7+ {[%clk 0:00:28]}  Ke4 {[%clk 0:00:14]} 46. Re7 {[%clk 0:00:24]}  Nxg7 {[%clk 0:00:13]} 47. d6 {[%clk 0:00:25]}  Ke3 {[%clk 0:00:06]} 48. d7 {[%clk 0:00:21]}  Rd2+ {[%clk 0:00:06]} 49. Kc1 {[%clk 0:00:20]}  Rd5 {[%clk 0:00:02]} 50. Rxg7 {[%clk 0:00:19]}  Kd3 {[%clk 0:00:02]} 51. Kb2 {[%clk 0:00:17]}  e4 {[%clk 0:00:02]} 52. Re7 {[%clk 0:00:17]}  e3 {[%clk 0:00:02]} 53. Re8 {[%clk 0:00:12]}  Rxd7 {[%clk 0:00:01]} 54. Re5 {[%clk 0:00:12]}  e2 {[%clk 0:00:02]} 55. Kb1 {[%clk 0:00:10]}  Rd4 {[%clk 0:00:03]} 56. Kb2 {[%clk 0:00:10]}  e1=Q {[%clk 0:00:03]} 57. Rxe1 {[%clk 0:00:10]}  Kd2 {[%clk 0:00:04]} 58. Rh1 {[%clk 0:00:09]}  Rd3 {[%clk 0:00:05]} 59. Rh2+ {[%clk 0:00:10]}  Ke3 {[%clk 0:00:06]} 60. Rh3+ {[%clk 0:00:10]}  Kd2 {[%clk 0:00:06]} 61. Rh2+ {[%clk 0:00:10]}  Kd1 {[%clk 0:00:07]} 62. Rh1+ {[%clk 0:00:11]}  Ke2 {[%clk 0:00:07]} 63. Rh2+ {[%clk 0:00:11]}  Kf3 {[%clk 0:00:08]} 64. Rh3+ {[%clk 0:00:12]}  Ke4 {[%clk 0:00:09]} 65. Rh4+ {[%clk 0:00:12]}  Kd5 {[%clk 0:00:09]} 66. Rh5+ {[%clk 0:00:12]}  Kc6 {[%clk 0:00:10]} 67. Rh2 {[%clk 0:00:12]}  Kc5 {[%clk 0:00:09]} 68. Rh5+ {[%clk 0:00:12]}  Rd5 {[%clk 0:00:09]} 69. Rh4 {[%clk 0:00:13]}  Rd4 {[%clk 0:00:09]} 70. Rh2 {[%clk 0:00:13]}  Kb5 {[%clk 0:00:09]} 71. Rc2 {[%clk 0:00:14]}  Rd3 {[%clk 0:00:08]} 72. Kb1 {[%clk 0:00:14]}  Rc3 {[%clk 0:00:07]} 73. Rb2 {[%clk 0:00:13]}  Kc5 {[%clk 0:00:07]} 74. Ka2 {[%clk 0:00:13]}  Kd4 {[%clk 0:00:08]} 75. Rh2 {[%clk 0:00:14]}  Kd3 {[%clk 0:00:08]} 76. Rh3+ {[%clk 0:00:14]}  Kc2 {[%clk 0:00:09]} 77. Rh2+ {[%clk 0:00:14]}  Kd1 {[%clk 0:00:09]} 78. Rg2 {[%clk 0:00:14]}  Rc2+ {[%clk 0:00:09]} 79. Rxc2 {[%clk 0:00:14]}  Kxc2 {[%clk 0:00:09]} 80. Ka1 {[%clk 0:00:13]}  Kxb3 {[%clk 0:00:10]} 81. Kb1 {[%clk 0:00:13]}  Kc3 {[%clk 0:00:10]} 82. Kc1 {[%clk 0:00:14]}  b3 {[%clk 0:00:09]} 83. Kb1 {[%clk 0:00:14]}  b2 {[%clk 0:00:09]} 84. Ka2 {[%clk 0:00:14]}  Kc2 {[%clk 0:00:10]} 85. Ka3 {[%clk 0:00:15]}  b1=Q {[%clk 0:00:10]} 86. Ka4 {[%clk 0:00:15]}  Qb6 {[%clk 0:00:10]} 0-1


[Site "https://www.chess.com"]

[Event "Titled Tuesday Blitz April 26 Early 2022"]
[White "Myshakov, Fyodor"]
[Black "Sarkar, Justin"]
[WhiteFideId "14111284"]
[BlackFideId "2010011"]
[WhiteElo "2310"]
[BlackElo "2038"]
[Result "1-0"]
[Round "10"]
[TimeControl "180+1"]
[Date "2022.04.26"]
[WhiteClock "0:01:47"]
[BlackClock "0:00:01"]

1. c4 {[%clk 0:02:59]}  d6 {[%clk 0:02:44]} 2. Nc3 {[%clk 0:02:59]}  g6 {[%clk 0:02:43]} 3. Nf3 {[%clk 0:02:59]}  Bg7 {[%clk 0:02:42]} 4. g3 {[%clk 0:02:59]}  c5 {[%clk 0:02:22]} 5. Qc2 {[%clk 0:02:59]}  Nc6 {[%clk 0:02:18]} 6. Bg2 {[%clk 0:02:59]}  Nh6 {[%clk 0:02:13]} 7. O-O {[%clk 0:02:58]}  Nf5 {[%clk 0:02:11]} 8. e3 {[%clk 0:02:56]}  O-O {[%clk 0:02:02]} 9. a3 {[%clk 0:02:56]}  Bd7 {[%clk 0:01:57]} 10. b3 {[%clk 0:02:56]}  a6 {[%clk 0:01:46]} 11. Bb2 {[%clk 0:02:56]}  Rb8 {[%clk 0:01:36]} 12. Rab1 {[%clk 0:02:54]}  b5 {[%clk 0:01:34]} 13. cxb5 {[%clk 0:02:54]}  axb5 {[%clk 0:01:34]} 14. Nd5 {[%clk 0:02:49]}  e6 {[%clk 0:01:25]} 15. Bxg7 {[%clk 0:02:48]}  Nxg7 {[%clk 0:01:22]} 16. Nf4 {[%clk 0:02:47]}  b4 {[%clk 0:01:11]} 17. a4 {[%clk 0:02:47]}  Qe7 {[%clk 0:01:06]} 18. d4 {[%clk 0:02:46]}  cxd4 {[%clk 0:01:00]} 19. Nxd4 {[%clk 0:02:40]}  Nxd4 {[%clk 0:00:55]} 20. exd4 {[%clk 0:02:41]}  Rfc8 {[%clk 0:00:51]} 21. Qd2 {[%clk 0:02:39]}  d5 {[%clk 0:00:47]} 22. Rfe1 {[%clk 0:02:37]}  Qd6 {[%clk 0:00:46]} 23. h4 {[%clk 0:02:37]}  Nf5 {[%clk 0:00:37]} 24. Bh3 {[%clk 0:02:33]}  Ne7 {[%clk 0:00:20]} 25. Rec1 {[%clk 0:02:32]}  Nc6 {[%clk 0:00:10]} 26. h5 {[%clk 0:02:30]}  Na5 {[%clk 0:00:08]} 27. h6 {[%clk 0:02:25]}  Qf8 {[%clk 0:00:06]} 28. Nd3 {[%clk 0:02:23]}  Rxc1+ {[%clk 0:00:03]} 29. Qxc1 {[%clk 0:02:22]}  Rc8 {[%clk 0:00:02]} 30. Qf4 {[%clk 0:02:21]}  Rc3 {[%clk 0:00:02]} 31. Ne5 {[%clk 0:02:20]}  Be8 {[%clk 0:00:02]} 32. Ng4 {[%clk 0:02:20]}  f5 {[%clk 0:00:02]} 33. Ne5 {[%clk 0:02:00]}  Nxb3 {[%clk 0:00:02]} 34. Bf1 {[%clk 0:01:51]}  Na5 {[%clk 0:00:02]} 35. Bb5 {[%clk 0:01:49]}  Bxb5 {[%clk 0:00:01]} 36. axb5 {[%clk 0:01:49]}  b3 {[%clk 0:00:01]} 37. b6 {[%clk 0:01:50]}  Rc2 {[%clk 0:00:01]} 38. b7 {[%clk 0:01:48]}  b2 {[%clk 0:00:01]} 39. Nd7 {[%clk 0:01:47]} 1-0


[Site "https://www.chess.com"]

[Event "Titled Tuesday Blitz April 26 Early 2022"]
[White "Narayanan, Srinath"]
[Black "Kozak, Antoni"]
[WhiteFideId "5018420"]
[BlackFideId "21832030"]
[WhiteElo "2472"]
[BlackElo "2236"]
[Result "1-0"]
[Round "10"]
[TimeControl "180+1"]
[Date "2022.04.26"]
[WhiteClock "0:00:38"]
[BlackClock "0:00:14"]

1. e4 {[%clk 0:03:00]}  c6 {[%clk 0:02:39]} 2. d4 {[%clk 0:03:00]}  d5 {[%clk 0:02:40]} 3. exd5 {[%clk 0:03:00]}  cxd5 {[%clk 0:02:40]} 4. Bd3 {[%clk 0:03:00]}  Nc6 {[%clk 0:02:40]} 5. c3 {[%clk 0:03:00]}  Qc7 {[%clk 0:02:40]} 6. Nf3 {[%clk 0:02:59]}  Bg4 {[%clk 0:02:33]} 7. Nbd2 {[%clk 0:02:53]}  e6 {[%clk 0:02:32]} 8. Nf1 {[%clk 0:02:50]}  Bh5 {[%clk 0:02:29]} 9. Ng3 {[%clk 0:02:50]}  Bg6 {[%clk 0:02:29]} 10. Be2 {[%clk 0:02:48]}  Bd6 {[%clk 0:02:25]} 11. Bg5 {[%clk 0:02:42]}  Nf6 {[%clk 0:02:25]} 12. Nh4 {[%clk 0:02:39]}  Bf4 {[%clk 0:02:17]} 13. Nxg6 {[%clk 0:02:33]}  hxg6 {[%clk 0:02:16]} 14. Bxf4 {[%clk 0:02:34]}  Qxf4 {[%clk 0:02:15]} 15. Qd2 {[%clk 0:02:35]}  Qxd2+ {[%clk 0:02:11]} 16. Kxd2 {[%clk 0:02:35]}  g5 {[%clk 0:02:10]} 17. h3 {[%clk 0:02:35]}  Ke7 {[%clk 0:02:06]} 18. Bd3 {[%clk 0:02:36]}  Kd6 {[%clk 0:01:58]} 19. Rae1 {[%clk 0:02:36]}  a6 {[%clk 0:01:58]} 20. b4 {[%clk 0:02:34]}  Rac8 {[%clk 0:01:50]} 21. a4 {[%clk 0:02:34]}  Rc7 {[%clk 0:01:49]} 22. Ra1 {[%clk 0:02:30]}  a5 {[%clk 0:01:42]} 23. b5 {[%clk 0:02:28]}  Nb8 {[%clk 0:01:41]} 24. Rhc1 {[%clk 0:02:24]}  Nbd7 {[%clk 0:01:40]} 25. Nf1 {[%clk 0:02:22]}  Nb6 {[%clk 0:01:36]} 26. Ne3 {[%clk 0:02:22]}  Rhc8 {[%clk 0:01:31]} 27. Ra3 {[%clk 0:02:22]}  Nh5 {[%clk 0:01:31]} 28. g3 {[%clk 0:02:21]}  Nf6 {[%clk 0:01:30]} 29. Ng2 {[%clk 0:02:19]}  Ne4+ {[%clk 0:01:23]} 30. Ke3 {[%clk 0:02:07]}  Rxc3 {[%clk 0:01:19]} 31. Rcxc3 {[%clk 0:01:48]}  Rxc3 {[%clk 0:01:19]} 32. Ra2 {[%clk 0:01:49]}  Kd7 {[%clk 0:01:00]} 33. Ke2 {[%clk 0:01:46]}  Nd6 {[%clk 0:01:01]} 34. Ne3 {[%clk 0:01:45]}  Rc1 {[%clk 0:00:54]} 35. Nf1 {[%clk 0:01:38]}  g6 {[%clk 0:00:47]} 36. Nd2 {[%clk 0:01:34]}  Rc3 {[%clk 0:00:37]} 37. Nf3 {[%clk 0:01:31]}  f6 {[%clk 0:00:34]} 38. Bxg6 {[%clk 0:01:27]}  Rc4 {[%clk 0:00:31]} 39. Bc2 {[%clk 0:01:18]}  Ne4 {[%clk 0:00:22]} 40. Bxe4 {[%clk 0:01:08]}  dxe4 {[%clk 0:00:22]} 41. Nd2 {[%clk 0:01:08]}  Rxd4 {[%clk 0:00:20]} 42. Nb3 {[%clk 0:01:07]}  Rxa4 {[%clk 0:00:20]} 43. Nc5+ {[%clk 0:01:07]}  Kd6 {[%clk 0:00:20]} 44. Nxa4 {[%clk 0:01:07]}  Nd5 {[%clk 0:00:20]} 45. Rc2 {[%clk 0:01:01]}  Ke5 {[%clk 0:00:20]} 46. Nc5 {[%clk 0:00:58]}  f5 {[%clk 0:00:21]} 47. Nxb7 {[%clk 0:00:56]}  a4 {[%clk 0:00:21]} 48. Na5 {[%clk 0:00:54]}  a3 {[%clk 0:00:21]} 49. Nc4+ {[%clk 0:00:54]}  Kd4 {[%clk 0:00:17]} 50. Nxa3 {[%clk 0:00:54]}  f4 {[%clk 0:00:18]} 51. Rc4+ {[%clk 0:00:50]}  Ke5 {[%clk 0:00:17]} 52. h4 {[%clk 0:00:47]}  f3+ {[%clk 0:00:15]} 53. Ke1 {[%clk 0:00:38]}  gxh4 {[%clk 0:00:13]} 54. gxh4 {[%clk 0:00:39]}  Nf4 {[%clk 0:00:14]} 55. b6 {[%clk 0:00:38]} 1-0


[Site "https://www.chess.com"]

[Event "Titled Tuesday Blitz April 26 Early 2022"]
[White "Omariev, Maksim"]
[Black "Prohorov, Olexandr"]
[WhiteFideId "4193423"]
[BlackFideId "14105578"]
[WhiteElo "2485"]
[BlackElo "1993"]
[Result "1-0"]
[Round "10"]
[TimeControl "180+1"]
[Date "2022.04.26"]
[WhiteClock "0:00:06"]
[BlackClock "0:00:01"]

1. g4 {[%clk 0:03:00]}  c6 {[%clk 0:01:21]} 2. Bg2 {[%clk 0:02:25]}  d5 {[%clk 0:01:20]} 3. h3 {[%clk 0:02:24]}  h5 {[%clk 0:01:19]} 4. g5 {[%clk 0:02:19]}  e5 {[%clk 0:01:19]} 5. d4 {[%clk 0:02:19]}  e4 {[%clk 0:01:16]} 6. c4 {[%clk 0:02:19]}  f5 {[%clk 0:01:02]} 7. Nc3 {[%clk 0:02:17]}  dxc4 {[%clk 0:00:57]} 8. h4 {[%clk 0:01:55]}  Bd6 {[%clk 0:00:51]} 9. Nh3 {[%clk 0:01:55]}  Ne7 {[%clk 0:00:48]} 10. Nf4 {[%clk 0:00:47]}  g6 {[%clk 0:00:44]} 11. Be3 {[%clk 0:00:43]}  O-O {[%clk 0:00:41]} 12. Qd2 {[%clk 0:00:40]}  b5 {[%clk 0:00:39]} 13. f3 {[%clk 0:00:38]}  b4 {[%clk 0:00:34]} 14. Na4 {[%clk 0:00:38]}  Qa5 {[%clk 0:00:31]} 15. Nc5 {[%clk 0:00:38]}  Na6 {[%clk 0:00:30]} 16. Nce6 {[%clk 0:00:32]}  Bxe6 {[%clk 0:00:28]} 17. Nxe6 {[%clk 0:00:33]}  Rf7 {[%clk 0:00:24]} 18. fxe4 {[%clk 0:00:32]}  c3 {[%clk 0:00:21]} 19. Qc2 {[%clk 0:00:28]}  fxe4 {[%clk 0:00:12]} 20. Bxe4 {[%clk 0:00:27]}  Nf5 {[%clk 0:00:12]} 21. Bf2 {[%clk 0:00:22]}  Re8 {[%clk 0:00:11]} 22. Qb3 {[%clk 0:00:13]}  cxb2 {[%clk 0:00:10]} 23. Rb1 {[%clk 0:00:14]}  Qb5 {[%clk 0:00:01]} 24. Bd3 {[%clk 0:00:11]}  Qb8 {[%clk 0:00:01]} 25. Bxa6 {[%clk 0:00:10]}  Bg3 {[%clk 0:00:01]} 26. Bxg3 {[%clk 0:00:10]}  Nxg3 {[%clk 0:00:01]} 27. Rg1 {[%clk 0:00:07]}  Qd6 {[%clk 0:00:02]} 28. Bc4 {[%clk 0:00:06]}  Kh7 {[%clk 0:00:01]} 29. Qxg3 {[%clk 0:00:06]} 1-0


[Site "https://www.chess.com"]

[Event "Titled Tuesday Blitz April 26 Early 2022"]
[White "Ovezdurdyyeva, Jemal"]
[Black "De Souza, Cristiano Gomes"]
[WhiteFideId "14001888"]
[BlackFideId "2151758"]
[WhiteElo "1946"]
[BlackElo "2068"]
[Result "1-0"]
[Round "10"]
[TimeControl "180+1"]
[Date "2022.04.26"]
[WhiteClock "0:01:45"]
[BlackClock "0:02:19"]

1. e4 {[%clk 0:03:00]}  c5 {[%clk 0:02:59]} 2. Nf3 {[%clk 0:03:00]}  d6 {[%clk 0:02:59]} 3. d4 {[%clk 0:03:01]}  cxd4 {[%clk 0:02:59]} 4. Nxd4 {[%clk 0:03:01]}  Nf6 {[%clk 0:02:59]} 5. Nc3 {[%clk 0:03:02]}  a6 {[%clk 0:02:59]} 6. Bc4 {[%clk 0:03:02]}  e6 {[%clk 0:02:56]} 7. O-O {[%clk 0:02:23]}  Be7 {[%clk 0:02:53]} 8. Kh1 {[%clk 0:02:20]}  O-O {[%clk 0:02:51]} 9. f4 {[%clk 0:02:20]}  b5 {[%clk 0:02:51]} 10. Bd3 {[%clk 0:02:17]}  Bb7 {[%clk 0:02:52]} 11. Be3 {[%clk 0:02:10]}  Nc6 {[%clk 0:02:48]} 12. a3 {[%clk 0:02:07]}  Nxd4 {[%clk 0:02:48]} 13. Bxd4 {[%clk 0:02:08]}  Qc7 {[%clk 0:02:39]} 14. e5 {[%clk 0:01:59]}  Nd5 {[%clk 0:02:26]} 15. Qh5 {[%clk 0:01:52]}  g6 {[%clk 0:02:25]} 16. Qh6 {[%clk 0:01:49]}  Nxc3 {[%clk 0:02:19]} 17. exd6 {[%clk 0:01:45]} 1-0


[Site "https://www.chess.com"]

[Event "Titled Tuesday Blitz April 26 Early 2022"]
[White "Padmini, Rout"]
[Black "Andrews, Todd"]
[WhiteFideId "5029295"]
[BlackFideId "2012456"]
[WhiteElo "2181"]
[BlackElo "2360"]
[Result "0-1"]
[Round "10"]
[TimeControl "180+1"]
[Date "2022.04.26"]
[WhiteClock "0:01:11"]
[BlackClock "0:00:15"]

1. e4 {[%clk 0:03:00]}  c5 {[%clk 0:02:58]} 2. Nf3 {[%clk 0:03:00]}  d6 {[%clk 0:02:58]} 3. d4 {[%clk 0:03:01]}  cxd4 {[%clk 0:02:59]} 4. Nxd4 {[%clk 0:03:02]}  Nf6 {[%clk 0:02:59]} 5. Nc3 {[%clk 0:03:02]}  a6 {[%clk 0:03:00]} 6. Bg5 {[%clk 0:03:02]}  e6 {[%clk 0:03:00]} 7. f4 {[%clk 0:03:03]}  Nbd7 {[%clk 0:03:01]} 8. Qf3 {[%clk 0:03:02]}  Qc7 {[%clk 0:03:01]} 9. O-O-O {[%clk 0:03:02]}  b5 {[%clk 0:03:00]} 10. Bd3 {[%clk 0:02:58]}  Bb7 {[%clk 0:03:00]} 11. Rhe1 {[%clk 0:02:59]}  Qb6 {[%clk 0:03:00]} 12. Nd5 {[%clk 0:02:57]}  Qxd4 {[%clk 0:02:38]} 13. Bxf6 {[%clk 0:02:51]}  gxf6 {[%clk 0:02:33]} 14. Bxb5 {[%clk 0:02:50]}  Qc5 {[%clk 0:02:33]} 15. Nxf6+ {[%clk 0:02:48]}  Ke7 {[%clk 0:02:20]} 16. Nxd7 {[%clk 0:02:48]}  Qxb5 {[%clk 0:02:15]} 17. Nxf8 {[%clk 0:02:48]}  Rhxf8 {[%clk 0:02:09]} 18. Qd3 {[%clk 0:02:16]}  Qxd3 {[%clk 0:01:53]} 19. cxd3 {[%clk 0:02:17]}  Rfc8+ {[%clk 0:01:47]} 20. Kd2 {[%clk 0:02:17]}  Rab8 {[%clk 0:01:44]} 21. Rc1 {[%clk 0:02:15]}  a5 {[%clk 0:01:44]} 22. Rxc8 {[%clk 0:02:10]}  Rxc8 {[%clk 0:01:43]} 23. Re3 {[%clk 0:02:06]}  Rg8 {[%clk 0:01:38]} 24. g3 {[%clk 0:02:06]}  h5 {[%clk 0:01:36]} 25. Re1 {[%clk 0:01:58]}  Rc8 {[%clk 0:01:34]} 26. b3 {[%clk 0:01:52]}  d5 {[%clk 0:01:27]} 27. e5 {[%clk 0:01:39]}  d4 {[%clk 0:01:25]} 28. Rb1 {[%clk 0:01:32]}  Rc3 {[%clk 0:01:15]} 29. Rf1 {[%clk 0:01:31]}  f6 {[%clk 0:00:50]} 30. f5 {[%clk 0:01:21]}  fxe5 {[%clk 0:00:47]} 31. fxe6 {[%clk 0:01:21]}  Kxe6 {[%clk 0:00:43]} 32. Rf8 {[%clk 0:01:21]}  Ba6 {[%clk 0:00:40]} 33. Rh8 {[%clk 0:01:19]}  Rxd3+ {[%clk 0:00:39]} 34. Kc2 {[%clk 0:01:20]}  Rc3+ {[%clk 0:00:39]} 35. Kb2 {[%clk 0:01:20]}  Rf3 {[%clk 0:00:32]} 36. Rxh5 {[%clk 0:01:19]}  Rf2+ {[%clk 0:00:32]} 37. Ka3 {[%clk 0:01:19]}  d3 {[%clk 0:00:28]} 38. Rh6+ {[%clk 0:01:19]}  Rf6 {[%clk 0:00:27]} 39. Rh8 {[%clk 0:01:18]}  Bb7 {[%clk 0:00:22]} 40. Re8+ {[%clk 0:01:15]}  Kd7 {[%clk 0:00:18]} 41. Rb8 {[%clk 0:01:10]}  d2 {[%clk 0:00:17]} 42. Rxb7+ {[%clk 0:01:10]}  Kc6 {[%clk 0:00:17]} 43. Ra7 {[%clk 0:01:10]}  d1=Q {[%clk 0:00:15]} 44. Ra6+ {[%clk 0:01:10]}  Kb5 {[%clk 0:00:16]} 45. Rxf6 {[%clk 0:01:11]}  Qc1# {[%clk 0:00:15]} 0-1


[Site "https://www.chess.com"]

[Event "Titled Tuesday Blitz April 26 Early 2022"]
[White "Papasimakopoulos, Alexandros"]
[Black "Terry, Renato"]
[WhiteFideId "4244125"]
[BlackFideId "3803457"]
[WhiteElo "2340"]
[BlackElo "2577"]
[Result "1-0"]
[Round "10"]
[TimeControl "180+1"]
[Date "2022.04.26"]
[WhiteClock "0:00:40"]
[BlackClock "0:00:23"]

1. d4 {[%clk 0:03:00]}  e6 {[%clk 0:02:59]} 2. c4 {[%clk 0:02:57]}  Bb4+ {[%clk 0:02:59]} 3. Bd2 {[%clk 0:02:57]}  c5 {[%clk 0:02:59]} 4. Nf3 {[%clk 0:02:54]}  Nf6 {[%clk 0:02:57]} 5. g3 {[%clk 0:02:54]}  Qb6 {[%clk 0:02:57]} 6. dxc5 {[%clk 0:02:00]}  Bxc5 {[%clk 0:02:58]} 7. e3 {[%clk 0:01:53]}  Qxb2 {[%clk 0:02:58]} 8. Nc3 {[%clk 0:01:52]}  Qb6 {[%clk 0:02:58]} 9. Na4 {[%clk 0:01:51]}  Qc7 {[%clk 0:02:58]} 10. Nxc5 {[%clk 0:01:51]}  Qxc5 {[%clk 0:02:59]} 11. Be2 {[%clk 0:01:45]}  b6 {[%clk 0:02:57]} 12. O-O {[%clk 0:01:44]}  Bb7 {[%clk 0:02:58]} 13. Qb3 {[%clk 0:01:44]}  Nc6 {[%clk 0:02:58]} 14. Bc1 {[%clk 0:01:43]}  O-O {[%clk 0:01:33]} 15. Ba3 {[%clk 0:01:43]}  Qa5 {[%clk 0:01:34]} 16. Bxf8 {[%clk 0:01:43]}  Rxf8 {[%clk 0:01:35]} 17. Rfd1 {[%clk 0:01:41]}  Rc8 {[%clk 0:01:30]} 18. a4 {[%clk 0:01:38]}  Qc5 {[%clk 0:01:23]} 19. Qb5 {[%clk 0:01:37]}  Qe7 {[%clk 0:01:23]} 20. Rab1 {[%clk 0:01:32]}  Rc7 {[%clk 0:01:19]} 21. Nd4 {[%clk 0:01:25]}  Na5 {[%clk 0:01:10]} 22. Bf3 {[%clk 0:01:21]}  Bxf3 {[%clk 0:01:04]} 23. Nxf3 {[%clk 0:01:22]}  Nxc4 {[%clk 0:01:03]} 24. Nd2 {[%clk 0:01:12]}  Nxd2 {[%clk 0:00:57]} 25. Rxd2 {[%clk 0:01:12]}  h5 {[%clk 0:00:55]} 26. a5 {[%clk 0:01:04]}  Rc5 {[%clk 0:00:52]} 27. Qb4 {[%clk 0:00:57]}  bxa5 {[%clk 0:00:42]} 28. Qb8+ {[%clk 0:00:56]}  Kh7 {[%clk 0:00:43]} 29. Qxa7 {[%clk 0:00:56]}  Rf5 {[%clk 0:00:37]} 30. Qd4 {[%clk 0:00:52]}  Qa3 {[%clk 0:00:29]} 31. Ra1 {[%clk 0:00:50]}  Qb3 {[%clk 0:00:25]} 32. Rb2 {[%clk 0:00:49]}  Qd5 {[%clk 0:00:24]} 33. Qxd5 {[%clk 0:00:49]}  Nxd5 {[%clk 0:00:24]} 34. e4 {[%clk 0:00:48]}  Re5 {[%clk 0:00:20]} 35. exd5 {[%clk 0:00:48]}  Rxd5 {[%clk 0:00:21]} 36. Rba2 {[%clk 0:00:49]}  Rf5 {[%clk 0:00:21]} 37. Rxa5 {[%clk 0:00:49]}  d5 {[%clk 0:00:22]} 38. Kg2 {[%clk 0:00:46]}  g5 {[%clk 0:00:22]} 39. R1a4 {[%clk 0:00:45]}  g4 {[%clk 0:00:23]} 40. Rf4 {[%clk 0:00:44]}  Rxf4 {[%clk 0:00:22]} 41. gxf4 {[%clk 0:00:44]}  Kg6 {[%clk 0:00:23]} 42. Kg3 {[%clk 0:00:43]}  Kf5 {[%clk 0:00:23]} 43. f3 {[%clk 0:00:40]} 1-0


[Site "https://www.chess.com"]

[Event "Titled Tuesday Blitz April 26 Early 2022"]
[White "Paravyan, David"]
[Black "Urazayev, Arystanbek"]
[WhiteFideId "4194985"]
[BlackFideId "13709810"]
[WhiteElo "2569"]
[BlackElo "2422"]
[Result "0-1"]
[Round "10"]
[TimeControl "180+1"]
[Date "2022.04.26"]
[WhiteClock "0:00:25"]
[BlackClock "0:01:21"]

1. e4 {[%clk 0:03:00]}  c5 {[%clk 0:03:00]} 2. Nf3 {[%clk 0:03:00]}  e6 {[%clk 0:03:01]} 3. d4 {[%clk 0:03:01]}  cxd4 {[%clk 0:03:01]} 4. Nxd4 {[%clk 0:03:02]}  Nf6 {[%clk 0:03:01]} 5. Nc3 {[%clk 0:03:02]}  Nc6 {[%clk 0:03:01]} 6. Nxc6 {[%clk 0:03:02]}  bxc6 {[%clk 0:03:02]} 7. e5 {[%clk 0:03:02]}  Nd5 {[%clk 0:03:03]} 8. Ne4 {[%clk 0:03:03]}  Qc7 {[%clk 0:03:03]} 9. f4 {[%clk 0:03:04]}  Qb6 {[%clk 0:03:03]} 10. a3 {[%clk 0:03:04]}  f5 {[%clk 0:02:52]} 11. exf6 {[%clk 0:03:04]}  Nxf6 {[%clk 0:02:52]} 12. Nxf6+ {[%clk 0:03:05]}  gxf6 {[%clk 0:02:53]} 13. Qh5+ {[%clk 0:03:06]}  Kd8 {[%clk 0:02:52]} 14. Be2 {[%clk 0:03:06]}  Qc5 {[%clk 0:02:36]} 15. Qh4 {[%clk 0:02:30]}  Be7 {[%clk 0:02:33]} 16. Bd2 {[%clk 0:02:31]}  a5 {[%clk 0:02:12]} 17. Bc3 {[%clk 0:02:17]}  Rf8 {[%clk 0:02:04]} 18. O-O-O {[%clk 0:02:04]}  Rb8 {[%clk 0:01:53]} 19. Bd4 {[%clk 0:01:27]}  Qf5 {[%clk 0:01:48]} 20. g4 {[%clk 0:01:06]}  Qxf4+ {[%clk 0:01:46]} 21. Kb1 {[%clk 0:01:03]}  e5 {[%clk 0:01:43]} 22. Bc3 {[%clk 0:00:57]}  Qa4 {[%clk 0:01:34]} 23. Ka2 {[%clk 0:00:43]}  Qxc2 {[%clk 0:01:20]} 24. Bxa5+ {[%clk 0:00:42]}  Ke8 {[%clk 0:01:21]} 25. Rd2 {[%clk 0:00:26]}  Rxb2+ {[%clk 0:01:20]} 26. Ka1 {[%clk 0:00:25]}  Ra2# {[%clk 0:01:21]} 0-1


[Site "https://www.chess.com"]